bitfinex-derivatives/quotes_ETHF0:USTF0_20250322
["timestamp","ask_amount","ask_price","bid_price","bid_amount"]
[1742668071923,3.74073,1995.9,1995.8,2.29068]
[1742668072915,3.74073,1995.9,1995.8,1.2884]
[1742668074718,1.00228,1995.8,1995.7,1.00980869]
[1742668074926,2.37678,1995.8,1995.7,2.31690869]
[1742668077418,2.37678,1995.8,1995.7,2.98160869]
[1742668079927,2.37678,1995.8,1995.7,1.97929869]
[1742668080228,2.37678,1995.8,1995.7,2.98162869]
[1742668081020,2.37678,1995.8,1995.7,1.31459869]
[1742668082823,2.37678,1995.8,1995.7,2.31692869]
[1742668083019,2.37678,1995.8,1995.7,1.31459869]
[1742668083225,2.37678,1995.8,1995.7,2.31692869]
[1742668083823,2.37678,1995.8,1995.7,1.31459869]
[1742668084228,2.37678,1995.8,1995.7,1.96869869]
[1742668084932,1.3745,1995.8,1995.7,2.97102869]
[1742668085230,1.00224,1995.9,1995.8,1.00228]
[1742668085432,1.00224,1995.9,1995.8,2.31418]
[1742668085929,1.00224,1995.9,1995.8,1.3119]
[1742668086129,1.69514,1995.9,1995.8,1.3119]
[1742668086524,3.00884,1995.9,1995.8,1.3119]
[1742668087430,3.00884,1995.9,1995.8,2.31418]
[1742668091539,3.00884,1995.9,1995.8,1.3119]
[1742668092036,1.00228,1995.8,1995.7,0.00749869]
[1742668092337,2.38328,1995.8,1995.7,1.36719869]
[1742668093430,2.38328,1995.8,1995.7,2.36952869]
[1742668094635,2.38328,1995.8,1995.7,1.36719869]
[1742668095236,2.38328,1995.8,1995.7,2.36952869]
[1742668095540,2.38328,1995.8,1995.7,1.36719869]
[1742668096334,2.38328,1995.8,1995.7,0.00749869]
[1742668097641,2.38328,1995.8,1995.7,1.40819869]
[1742668099039,2.38328,1995.8,1995.7,2.41052869]
[1742668099247,1.381,1995.8,1995.7,2.41052869]
[1742668099647,2.38328,1995.8,1995.7,2.41052869]
[1742668103051,2.38328,1995.8,1995.7,1.40819869]
[1742668103243,2.38328,1995.8,1995.7,2.41052869]
[1742668104751,2.38328,1995.8,1995.7,1.40819869]
[1742668104937,2.38328,1995.8,1995.7,0.00749869]
[1742668105539,2.38328,1995.8,1995.7,1.37599869]
[1742668105949,2.38328,1995.8,1995.7,2.37832869]
[1742668106148,2.38328,1995.8,1995.7,1.37599869]
[1742668108346,2.38328,1995.8,1995.7,0.00749869]
[1742668110542,2.38328,1995.8,1995.7,1.28189869]
[1742668111450,5.59108,1995.8,1995.7,0.00749869]
[1742668113151,1.00248,1995.4,1995.3,3.2078]
[1742668113353,1.00248,1995.4,1995.3,1.319]
[1742668113855,2.94248,1995.4,1995.3,1.319]
[1742668114961,2.94248,1995.4,1995.3,2.32153]
[1742668114962,2.30688,1995.4,1995.3,2.32153]
[1742668115654,1.00248,1995.4,1995.3,5.52933]
[1742668115960,2.30688,1995.4,1995.3,2.32153]
[1742668117464,2.30688,1995.4,1995.3,1.319]
[1742668118265,2.30688,1995.4,1995.3,4.5268]
[1742668118462,2.30688,1995.4,1995.3,1.319]
[1742668118668,2.30688,1995.4,1995.3,5.52933]
[1742668119255,2.30688,1995.4,1995.3,4.5268]
[1742668120168,2.30688,1995.4,1995.3,1.319]
[1742668121372,2.30688,1995.4,1995.3,2.32153]
[1742668121872,1.3044,1995.4,1995.3,2.32153]
[1742668122074,1.3044,1995.4,1995.3,2.99433]
[1742668122777,2.30688,1995.4,1995.3,2.99433]
[1742668125769,1.3044,1995.4,1995.3,2.99433]
[1742668126380,2.30688,1995.4,1995.3,2.99433]
[1742668127483,1.3044,1995.4,1995.3,2.99433]
[1742668128286,2.30688,1995.4,1995.3,2.99433]
[1742668132185,2.30688,1995.4,1995.3,2.32153]
[1742668132386,3.00348,1995.4,1995.3,1.319]
[1742668132780,3.00348,1995.4,1995.3,2.32153]
[1742668133779,3.00348,1995.4,1995.3,1.319]
[1742668134185,3.00348,1995.4,1995.3,2.32153]
[1742668136075,0.00749869,1995.5,1995.4,1.00248]
[1742668136387,1.0023,1995.8,1995.7,1.00229]
[1742668136582,2.2919,1995.8,1995.7,1.00229]
[1742668136982,1.2896,1995.8,1995.7,1.64409]
[1742668137177,2.29188,1995.8,1995.7,1.64409]
[1742668137987,1.00233,1995.7,1995.6,2.35394869]
[1742668138288,2.29583,1995.7,1995.6,2.35394869]
[1742668141485,2.29583,1995.7,1995.6,1.35159869]
[1742668141781,2.29583,1995.7,1995.6,0.00749869]
[1742668143592,5.47683,1995.7,1995.6,0.00749869]
[1742668146992,8.68463,1995.7,1995.6,0.00749869]
[1742668148595,1.00253,1995.3,1995.2,1.00255]
[1742668149096,1.0026,1995.2,1995.1,1.00259]
[1742668149296,1.00257,1995.3,1995.2,1.00256]
[1742668150588,1.00258,1995.2,1995.1,2.38249]
[1742668151294,1.00258,1995.2,1995.1,3.04705554]
[1742668152498,1.00258,1995.2,1995.1,3.72625554]
[1742668154104,1.00258,1995.2,1995.1,3.06169]
[1742668155201,1.00258,1995.2,1995.1,3.72610654]
[1742668156100,1.00258,1995.2,1995.1,3.06169]
[1742668156488,1.00258,1995.2,1995.1,2.38253]
[1742668156695,1.00258,1995.2,1995.1,1.3799]
[1742668157991,1.00258,1995.2,1995.1,2.38253]
[1742668159494,1.00258,1995.2,1995.1,1.3799]
[1742668160902,1.00258,1995.2,1995.1,2.38253]
[1742668161203,1.00258,1995.2,1995.1,1.3799]
[1742668161904,1.00273,1994.9,1994.8,1.00274]
[1742668162097,1.00283,1994.7,1994.6,4.21065]
[1742668162299,1.64991,1994.8,1994.7,1.00283]
[1742668162496,1.65742785,1994.8,1994.7,1.00283]
[1742668163205,1.00283,1994.7,1994.6,4.21064]
[1742668163407,1.00283,1994.7,1994.6,5.50474]
[1742668163606,1.64883,1994.7,1994.6,5.50474]
[1742668164402,1.64883,1994.7,1994.6,4.5019]
[1742668166209,1.64883,1994.7,1994.6,5.50478]
[1742668166510,1.64883,1994.7,1994.6,4.5019]
[1742668167908,1.64883,1994.7,1994.6,5.50478]
[1742668168900,1.00283,1994.7,1994.6,6.17718]
[1742668170706,1.00283,1994.7,1994.6,5.1743]
[1742668170907,1.00283,1994.7,1994.6,6.17718]
[1742668173417,1.00283,1994.7,1994.6,2.96938]
[1742668175522,1.65743785,1994.8,1994.7,1.00283]
[1742668175719,1.65743785,1994.8,1994.7,2.30003]
[1742668176820,1.65743785,1994.8,1994.7,1.2972]
[1742668180926,2.97563785,1994.8,1994.7,1.2972]
[1742668183926,2.97563785,1994.8,1994.7,2.30003]
[1742668184319,2.97563785,1994.8,1994.7,1.2972]
[1742668185521,2.97563785,1994.8,1994.7,2.30003]
[1742668186317,2.97563785,1994.8,1994.7,1.2972]
[1742668186824,2.97563785,1994.8,1994.7,2.30003]
[1742668187328,2.97563785,1994.8,1994.7,1.2972]
[1742668189331,4.18472,1995.0,1994.7,2.30003]
[1742668189531,1.3622,1994.9,1994.8,1.00278]
[1742668189731,1.3622,1994.9,1994.8,2.38898]
[1742668190031,2.36493,1994.9,1994.8,2.38898]
[1742668190836,3.02963,1994.9,1994.8,2.38898]
[1742668192625,3.02963,1994.9,1994.8,1.3862]
[1742668194236,3.02963,1994.9,1994.8,2.38898]
[1742668195227,3.02963,1994.9,1994.8,1.3862]
[1742668196325,3.02963,1994.9,1994.8,2.38898]
[1742668196536,3.02963,1994.9,1994.8,1.3862]
[1742668198432,1.00278,1994.8,1994.7,0.00751785]
[1742668198738,3.03008,1994.8,1994.7,1.29441785]
[1742668199036,3.03008,1994.8,1994.7,2.29724785]
[1742668199224,3.03008,1994.8,1994.7,1.29441785]
[1742668199739,6.21108,1994.8,1994.7,0.00751785]
[1742668200040,6.21108,1994.8,1994.7,1.29441785]
[1742668222644,6.21108,1994.8,1994.7,0.00751785]
[1742668223452,6.21108,1994.8,1994.7,1.35211785]
[1742668226754,6.21108,1994.8,1994.7,0.00751785]
[1742668227753,7.00889314,1994.8,1994.7,0.00751785]
[1742668228362,6.21108,1994.8,1994.7,0.00751785]
[1742668239666,9.41888,1994.8,1994.7,0.00751785]
[1742668241566,6.21108,1994.8,1994.7,0.00751785]
[1742668244175,9.41888,1994.8,1994.7,0.00751785]
[1742668244372,9.49883455,1994.8,1994.7,0.00751785]
[1742668244571,9.41888,1994.8,1994.7,0.00751785]
[1742668245269,10.296109,1994.8,1994.7,0.00751785]
[1742668245580,10.29610879,1994.8,1994.7,0.00751785]
[1742668245775,1.00298,1994.4,1994.3,0.6348]
[1742668247081,2.30018,1994.4,1994.3,1.9011]
[1742668248180,1.2972,1994.4,1994.3,1.9011]
[1742668248381,2.30018,1994.4,1994.3,1.9011]
[1742668253683,2.30018,1994.4,1994.3,1.2663]
[1742668254383,5.50798,1994.4,1994.3,1.2663]
[1742668254784,1.00313,1994.1,1994.0,1.66597]
[1742668255286,1.00313,1994.1,1994.0,0.6628]
[1742668256388,1.00313,1994.1,1994.0,1.66598]
[1742668257381,1.00313,1994.1,1994.0,0.6628]
[1742668258087,1.00313,1994.1,1994.0,1.3455]
[1742668258289,3.01193,1994.1,1994.0,1.3455]
[1742668259288,2.36883,1994.1,1994.0,1.3455]
[1742668260183,5.54983,1994.1,1994.0,1.3455]
[1742668261991,4.5467,1994.1,1994.0,5.55648]
[1742668263293,5.54983,1994.1,1994.0,5.55648]
[1742668264084,2.36883,1994.1,1994.0,5.55648]
[1742668267097,2.36883,1994.1,1994.0,4.5533]
[1742668269382,2.36883,1994.1,1994.0,3.2078]
[1742668269581,2.36883,1994.1,1994.0,4.5902]
[1742668273193,2.36883,1994.1,1994.0,5.59338]
[1742668273598,2.36883,1994.1,1994.0,1.3824]
[1742668275503,1.00318,1994.0,1993.9,1.6516]
[1742668275701,2.30778,1994.0,1993.9,1.6516]
[1742668275900,3.65748,1994.0,1993.9,1.6516]
[1742668276894,3.65748,1994.0,1993.9,3.0518]
[1742668277103,3.65748,1994.0,1993.9,1.4002]
[1742668277701,3.65748,1994.0,1993.9,2.40343]
[1742668278199,1.00323,1993.9,1993.8,3.2078]
[1742668278498,1.00329,1993.8,1993.7,1.00332]
[1742668278697,1.66699,1993.8,1993.7,2.32732]
[1742668281005,1.66699,1993.8,1993.7,2.32734]
[1742668281203,1.00338,1993.7,1993.6,1.00335]
[1742668281405,2.96908,1993.7,1993.6,2.33835]
[1742668281906,2.96908,1993.7,1993.6,3.00358064]
[1742668283207,2.96908,1993.7,1993.6,2.33835]
[1742668285707,2.96908,1993.7,1993.6,3.00346839]
[1742668285906,0.00751785,1993.9,1993.8,1.00329]
[1742668286107,1.33741785,1993.9,1993.8,4.21109]
[1742668286307,1.33741785,1993.9,1993.8,5.56369]
[1742668286505,1.33741785,1993.9,1993.8,6.19969]
[1742668288008,0.00751785,1993.9,1993.8,6.19969]
[1742668288509,0.00751785,1993.9,1993.8,9.38069]
[1742668288706,0.00751785,1993.9,1993.8,11.1090906]
[1742668289812,1.00303,1994.4,1994.3,1.00301]
[1742668290404,2.32353,1994.4,1994.3,1.00301]
[1742668292503,1.00303,1994.3,1994.2,2.38486785]
[1742668292704,2.28673,1994.3,1994.2,2.38486785]
[1742668294515,2.28673,1994.3,1994.2,1.38181785]
[1742668295423,2.28673,1994.3,1994.2,0.00751785]
[1742668299630,2.28673,1994.3,1994.2,1.33221785]
[1742668300313,1.2837,1994.3,1994.2,2.33529785]
[1742668300520,1.2837,1994.3,1994.2,3.63319785]
[1742668300720,0.00751785,1994.5,1994.4,1.00298]
[1742668300911,1.30561785,1994.5,1994.4,1.00298]
[1742668301111,1.30561785,1994.5,1994.4,5.50868]
[1742668302017,0.00751785,1994.5,1994.4,5.50868]
[1742668302517,1.39391785,1994.5,1994.4,5.50868]
[1742668302918,0.00751785,1994.5,1994.4,5.50868]
[1742668305217,1.01044785,1994.5,1994.4,2.32768]
[1742668305620,1.00298,1994.4,1994.3,7.3918]
[1742668305820,1.3592,1994.4,1994.3,8.6735]
[1742668307526,0.00751785,1994.5,1994.4,1.00298]
[1742668307824,1.36671785,1994.5,1994.4,2.28468]
[1742668309815,2.06881785,1994.5,1994.4,2.28468]
[1742668310314,2.06881785,1994.5,1994.2,0.00751785]
[1742668310519,1.00303,1994.3,1994.2,0.00751785]
[1742668312326,1.00303,1994.3,1994.2,1.01059785]
[1742668312625,1.00303,1994.3,1994.2,0.00751785]
[1742668313427,1.00303,1994.3,1994.2,1.01059785]
[1742668314227,1.00303,1994.3,1994.2,0.00751785]
[1742668316932,1.00303,1994.3,1994.2,1.01059785]
[1742668317427,1.00303,1994.3,1994.2,0.00751785]
[1742668317828,1.00303,1994.3,1994.2,1.01059785]
[1742668319635,1.00303,1994.3,1994.2,0.00751785]
[1742668323430,2.36163,1994.3,1994.2,0.00751785]
[1742668324841,3.05673,1994.3,1994.2,0.00751785]
[1742668331136,3.05673,1994.3,1994.2,1.33771785]
[1742668332740,3.05673,1994.3,1994.2,0.00751785]
[1742668334942,3.05673,1994.3,1994.2,1.31851785]
[1742668340740,3.05673,1994.3,1994.2,2.32159785]
[1742668342744,1.3586,1994.3,1994.2,2.32159785]
[1742668343051,1.3586,1994.3,1994.2,3.02019785]
[1742668343548,2.36163,1994.3,1994.2,3.02019785]
[1742668346237,2.36163,1994.3,1994.2,0.00751785]
[1742668351050,5.54263,1994.3,1994.2,0.00751785]
[1742668351255,1.00323,1993.9,1993.8,2.0486]
[1742668351656,1.00323,1993.9,1993.8,2.71466703]
[1742668352165,1.00323,1993.9,1993.8,3.71790703]
[1742668352352,1.00323,1993.9,1993.8,0.66606703]
[1742668352743,1.00334,1993.7,1993.6,3.2078]
[1742668352947,1.00334,1993.7,1993.5,1.3903]
[1742668353144,1.3985,1993.6,1993.3,1.0035]
[1742668353357,1.63988,1993.5,1993.4,1.3903]
[1742668354363,1.63988,1993.5,1993.4,2.39379]
[1742668355051,2.94208,1993.5,1993.4,2.39379]
[1742668355253,1.3022,1993.5,1993.4,2.39379]
[1742668355654,2.30564,1993.5,1993.4,2.39379]
[1742668355960,1.3022,1993.5,1993.4,2.39379]
[1742668356862,2.30564,1993.5,1993.4,1.3903]
[1742668357057,2.30564,1993.5,1993.4,2.39379]
[1742668360769,1.00349,1993.4,1993.3,1.00351]
[1742668360968,3.71549,1993.4,1993.3,2.30851]
[1742668361460,2.0768,1993.4,1993.3,2.30851]
[1742668361657,1.3962,1993.4,1993.3,5.51631]
[1742668368967,1.3158,1993.7,1993.6,1.00339]
[1742668369574,1.00342,1993.6,1993.5,1.0034]
[1742668370168,2.27162,1993.6,1993.5,1.0034]
[1742668377074,1.2682,1993.6,1993.5,4.2112]
[1742668377274,1.2682,1993.6,1993.5,4.8818]
[1742668380076,1.2682,1993.6,1993.5,5.5296]
[1742668382276,1.2682,1993.6,1993.5,6.8525]
[1742668382881,1.2682,1993.6,1993.5,6.2047]
[1742668383781,2.27159,1993.6,1993.5,6.2047]
[1742668384285,1.2682,1993.6,1993.5,6.2047]
[1742668385285,1.2682,1993.6,1993.5,6.87133829]
[1742668391475,4.18522,1994.0,1993.7,1.00334]
[1742668391779,1.3863,1993.9,1993.8,3.06329]
[1742668392476,2.38953,1993.9,1993.8,3.06329]
[1742668393075,1.3863,1993.9,1993.8,3.06329]
[1742668395683,1.3863,1993.9,1993.8,3.72906082]
[1742668398185,1.3863,1993.9,1993.8,6.91006082]
[1742668399586,2.38953,1993.9,1993.8,1.00329]
[1742668401985,1.00329,1993.8,1993.7,4.21111]
[1742668402187,3.60389,1993.8,1993.7,1.00331]
[1742668405192,2.6006,1993.8,1993.7,1.00331]
[1742668405696,3.60389,1993.8,1993.7,1.00331]
[1742668406996,3.60389,1993.8,1993.7,4.21111]
[1742668407299,3.60389,1993.8,1993.7,1.00331]
[1742668407689,3.60389,1993.8,1993.7,4.21111]
[1742668407998,3.60389,1993.8,1993.7,1.00331]
[1742668411304,2.6006,1993.8,1993.7,1.00331]
[1742668411498,2.6006,1993.8,1993.7,4.21111]
[1742668411698,2.6006,1993.8,1993.7,4.88401]
[1742668414805,3.60389,1993.8,1993.7,4.21111]
[1742668416106,2.6006,1993.8,1993.7,4.21111]
[1742668421911,2.6006,1993.8,1993.7,5.48661]
[1742668427605,1.00325,1993.9,1993.7,4.4833]
[1742668427812,0.00751785,1994.5,1994.4,1.00298]
[1742668428109,0.00751785,1994.5,1994.4,4.19298]
[1742668428613,0.6729,1994.7,1994.6,1.00288]
[1742668429212,0.6729,1994.7,1994.6,2.31928]
[1742668431215,0.6729,1994.7,1994.6,1.00288]
[1742668431521,1.67573,1994.7,1994.6,1.00288]
[1742668432223,0.6729,1994.7,1994.6,1.00288]
[1742668433118,0.6729,1994.7,1994.6,2.31148]
[1742668433418,1.67573,1994.7,1994.6,1.00288]
[1742668434423,0.6729,1994.7,1994.6,1.00288]
[1742668435214,0.6729,1994.7,1994.6,2.31148]
[1742668438123,0.6729,1994.7,1994.6,5.51928]
[1742668441130,2.0681,1994.7,1994.6,5.51928]
[1742668442429,2.0681,1994.7,1994.6,4.21068]
[1742668442735,3.07093,1994.7,1994.6,1.00288]
[1742668445025,2.0681,1994.7,1994.6,1.00288]
[1742668446535,3.07093,1994.7,1994.6,1.00288]
[1742668464840,3.07093,1994.7,1994.5,1.38291785]
[1742668464841,1.00288,1994.6,1994.5,0.00751785]
[1742668465043,2.39938,1994.6,1994.5,0.00751785]
[1742668465344,5.57938,1994.6,1994.5,0.00751785]
[1742668465744,5.57938,1994.6,1994.2,4.21086]
[1742668465745,1.00303,1994.3,1994.2,4.21086]
[1742668466242,1.3965,1994.4,1994.3,1.00303]
[1742668466439,1.3965,1994.4,1994.3,3.72083]
[1742668466641,4.21812785,1994.8,1994.3,3.72083]
[1742668466642,1.68565,1994.7,1994.6,1.00288]
[1742668466839,2.99505,1994.7,1994.6,1.00288]
[1742668467246,1.9922,1994.7,1994.6,1.00288]
[1742668467553,1.3094,1994.7,1994.6,1.63998]
[1742668468750,0.00751785,1994.8,1994.7,1.00283]
[1742668468950,1.31691785,1994.8,1994.7,3.08353]
[1742668472462,0.00751785,1994.8,1994.7,3.08353]
[1742668472665,0.00751785,1994.8,1994.7,6.29133]
[1742668481168,1.35881785,1994.8,1994.7,6.29133]
[1742668487070,1.35881785,1994.8,1994.7,3.08353]
[1742668487562,1.35881785,1994.8,1994.7,6.29133]
[1742668491066,1.35881785,1994.8,1994.7,3.08353]
[1742668491274,1.35881785,1994.8,1994.7,6.29133]
[1742668492975,1.35881785,1994.8,1994.7,5.60593]
[1742668496362,1.35881785,1994.8,1994.7,4.21063]
[1742668498881,2.36159785,1994.8,1994.7,4.21063]
[1742668499178,2.36159785,1994.8,1994.7,1.00283]
[1742668502479,1.35881785,1994.8,1994.7,1.00283]
[1742668503474,2.36159785,1994.8,1994.7,1.00283]
[1742668507281,1.00285,1994.7,1994.6,1.00284]
[1742668507478,1.00288,1994.6,1994.5,1.0029]
[1742668507687,1.00301,1994.4,1994.3,1.003]
[1742668508782,1.00297,1994.5,1994.4,1.00296]
[1742668510377,2.38767,1994.5,1994.4,1.00296]
[1742668512087,1.00301,1994.4,1994.3,1.003]
[1742668512288,2.32371,1994.4,1994.3,1.003]
[1742668512894,1.3207,1994.4,1994.3,1.003]
[1742668513386,1.3207,1994.4,1994.3,2.4002]
[1742668514780,1.3207,1994.4,1994.3,5.608]
[1742668514980,0.00751785,1994.8,1994.3,5.608]
[1742668514981,3.18651785,1994.8,1994.7,1.00283]
[1742668515485,0.00751785,1994.8,1994.7,1.00283]
[1742668516177,1.01029785,1994.8,1994.7,1.00283]
[1742668516783,0.00751785,1994.8,1994.7,1.00283]
[1742668517677,0.00751785,1994.8,1994.7,2.32043]
[1742668522179,1.29761785,1994.8,1994.7,2.32043]
[1742668524777,2.30039785,1994.8,1994.7,2.32043]
[1742668528291,2.98049785,1994.8,1994.7,2.32043]
[1742668529392,1.97771785,1994.8,1994.7,2.32043]
[1742668529894,0.00751785,1994.8,1994.7,2.32043]
[1742668531690,0.00751785,1994.8,1994.7,5.52823]
[1742668540094,0.00751785,1994.8,1994.7,8.70723]
[1742668544008,1.4002,1995.9,1995.8,1.00228]
[1742668544197,0.6988,1996.1,1996.0,1.00218]
[1742668544502,1.00221,1996.0,1995.9,1.0022]
[1742668544801,1.00221,1996.0,1995.8,2.29334]
[1742668544802,3.2078,1996.0,1995.8,2.29334]
[1742668544997,4.21001,1996.0,1995.8,2.29334]
[1742668545198,1.00223,1995.9,1995.8,2.29334]
[1742668545402,1.00223,1995.9,1995.8,1.00224]
[1742668546207,1.00228,1995.8,1995.7,0.00751785]
[1742668546408,4.84798,1995.8,1995.7,0.00751785]
[1742668546905,4.92788682,1995.8,1995.7,0.00751785]
[1742668547711,8.93138682,1995.8,1995.3,1.00251]
[1742668548010,3.2078,1995.4,1995.1,1.3648]
[1742668548206,7.4103,1995.4,1995.3,1.00253]
[1742668548612,1.00253,1995.3,1995.2,1.00254]
[1742668548814,0.6379,1995.3,1995.2,1.00254]
[1742668558922,1.289,1995.3,1995.2,1.00254]
[1742668561224,2.6455,1995.3,1995.2,1.00254]
[1742668576030,2.6455,1995.3,1995.2,2.34904]
[1742668587127,2.6455,1995.3,1994.6,3.2078]
[1742668587128,8.3235,1995.3,1994.6,3.2078]
[1742668587339,1.289,1995.3,1995.2,1.00258]
[1742668587530,1.289,1995.3,1995.2,4.21038]
[1742668587531,4.469,1995.3,1995.2,4.21038]
[1742668588139,4.469,1995.3,1995.2,5.51778]
[1742668588341,1.289,1995.3,1995.2,5.51778]
[1742668592737,1.289,1995.3,1995.2,2.30998]
[1742668601448,2.6691,1995.3,1995.2,2.30998]
[1742668604755,0.00751785,1995.4,1995.3,1.00253]
[1742668604958,0.00751785,1995.4,1995.3,6.87843]
[1742668608661,0.00751785,1995.4,1995.3,7.52399354]
[1742668618772,0.00751785,1995.4,1995.3,6.87843]
[1742668621773,0.00751785,1995.4,1995.3,5.53003]
[1742668621971,0.65551785,1995.4,1995.3,5.53003]
[1742668630479,0.65551785,1995.4,1995.3,8.73783]
[1742668630672,0.65551785,1995.4,1995.3,9.3832594]
[1742668640981,1.65799785,1995.4,1995.3,4.8557594]
[1742668641183,1.65799785,1995.4,1995.3,4.21033]
[1742668641580,0.65551785,1995.4,1995.3,4.21033]
[1742668644389,0.00751785,1995.4,1995.3,4.21033]
[1742668644683,0.00751785,1995.4,1995.3,4.86493]
[1742668645084,1.34671785,1995.4,1995.3,4.86493]
[1742668646191,1.34671785,1995.4,1995.3,5.5114024]
[1742668646396,1.34671785,1995.4,1995.3,8.6894024]
[1742668670298,0.00751785,1995.4,1995.3,8.6894024]
[1742668670503,0.00751785,1995.4,1995.3,9.3631024]
[1742668680299,0.00751785,1995.4,1995.3,8.6894024]
[1742668680504,0.00751785,1995.4,1995.3,8.0348024]
[1742668680911,1.36631785,1995.4,1995.3,8.0348024]
[1742668705527,1.36631785,1995.4,1995.3,4.8270024]
[1742668705830,1.36631785,1995.4,1995.3,8.0348024]
[1742668706428,1.36631785,1995.4,1995.3,4.8270024]
[1742668706729,1.36631785,1995.4,1995.3,8.0348024]
[1742668709030,1.36631785,1995.4,1995.3,9.4046024]
[1742668709635,0.00751785,1995.4,1995.3,9.4046024]
[1742668709830,0.6479,1995.6,1995.5,1.00243]
[1742668710033,1.2723,1995.7,1995.6,1.00238]
[1742668710231,1.2723,1995.7,1995.6,3.70358]
[1742668710433,0.68,1995.9,1995.8,1.00228]
[1742668710627,4.44845935,1996.3,1995.9,1.00223]
[1742668710628,1.2723,1996.0,1995.9,1.00223]
[1742668710823,1.2723,1996.0,1995.9,3.01643]
[1742668711030,1.2723,1996.0,1995.9,6.19343]
[1742668711329,1.2723,1996.0,1995.9,6.8399024]
[1742668711835,0.00751785,1996.1,1996.0,1.00218]
[1742668712135,1.35871785,1996.1,1996.0,2.35798]
[1742668712739,1.35871785,1996.1,1996.0,1.00218]
[1742668714036,0.00751785,1996.1,1996.0,4.20998]
[1742668714242,2.0331,1996.7,1996.6,1.00188]
[1742668714928,2.0331,1996.7,1996.6,2.39788]
[1742668716543,2.0331,1996.7,1996.6,1.00188]
[1742668716738,3.03493,1996.7,1996.6,1.00188]
[1742668719235,1.00188,1996.6,1996.5,4.20969]
[1742668719438,2.33728,1996.6,1996.5,4.20969]
[1742668719641,2.33728,1996.6,1996.5,1.00189]
[1742668721943,1.00193,1996.5,1996.4,2.35484]
[1742668722134,3.00383,1996.5,1996.4,2.35484]
[1742668725341,3.00383,1996.5,1996.4,5.56264]
[1742668731345,2.0019,1996.5,1996.4,5.56264]
[1742668733554,1.00192,1996.6,1996.5,1.00193]
[1742668733757,0.6609,1996.7,1996.6,1.00188]
[1742668733758,1.9652,1996.7,1996.6,1.00188]
[1742668733945,1.9652,1996.7,1996.6,1.69088]
[1742668734145,1.9652,1996.7,1996.6,2.99598]
[1742668738059,2.96703,1996.7,1996.6,2.30698]
[1742668738557,1.9652,1996.7,1996.6,2.30698]
[1742668738757,2.96703,1996.7,1996.6,2.30698]
[1742668739844,1.9652,1996.7,1996.6,2.30698]
[1742668740563,2.96703,1996.7,1996.6,2.30698]
[1742668746970,2.96703,1996.7,1996.6,1.3051]
[1742668747268,1.00198,1996.4,1996.3,7.38478]
[1742668747563,1.00198,1996.5,1996.4,1.00197]
[1742668747761,1.00198,1996.5,1996.4,2.33407]
[1742668748063,2.36628,1996.5,1996.4,2.33407]
[1742668750066,2.36628,1996.5,1996.4,1.3321]
[1742668754567,2.36628,1996.5,1996.4,2.33408]
[1742668755170,2.36628,1996.5,1996.4,1.3321]
[1742668756169,2.36628,1996.5,1996.4,2.33408]
[1742668756666,2.36628,1996.5,1996.4,1.3321]
[1742668757381,2.36628,1996.5,1996.4,2.33408]
[1742668757574,2.36628,1996.5,1996.4,1.3321]
[1742668759175,1.00198,1996.4,1996.3,1.00201]
[1742668759378,3.06148,1996.4,1996.3,2.39871]
[1742668759675,3.06148,1996.4,1996.1,6.3828]
[1742668759676,1.00208,1996.2,1996.1,6.3828]
[1742668759876,1.00208,1996.2,1996.1,4.5261]
[1742668760263,2.35148,1996.2,1996.1,4.5261]
[1742668761480,2.35148,1996.2,1996.1,2.32043]
[1742668761870,2.35148,1996.2,1996.1,3.01613]
[1742668762877,2.35148,1996.2,1996.1,2.014]
[1742668764075,3.16086,1996.4,1996.3,1.00203]
[1742668764076,1.6579,1996.4,1996.3,1.00203]
[1742668764276,1.9287,1996.4,1996.3,1.00203]
[1742668764886,4.20976,1996.5,1996.4,1.00198]
[1742668765080,5.48256,1996.5,1996.4,1.00198]
[1742668765273,1.00199,1996.4,1996.3,1.00199]
[1742668765680,2.36059,1996.4,1996.3,1.00199]
[1742668766780,1.3586,1996.4,1996.3,1.00199]
[1742668781086,2.6901,1996.4,1996.3,1.00199]
[1742668782987,2.6901,1996.4,1996.1,4.2099]
[1742668783184,1.00208,1996.2,1996.1,5.4787]
[1742668787886,1.00208,1996.2,1996.1,4.2099]
[1742668788191,1.00208,1996.2,1996.1,4.20993]
[1742668792689,1.00208,1996.2,1996.1,1.00213]
[1742668793084,1.00208,1996.2,1996.1,2.40013]
[1742668797183,1.00208,1996.2,1996.1,1.398]
[1742668798192,1.00208,1996.2,1996.1,2.40013]
[1742668798398,1.00223,1996.0,1995.9,1.0022]
[1742668798592,1.00223,1996.0,1995.9,2.3445]
[1742668798995,2.32943,1996.0,1995.9,2.3445]
[1742668799692,3.2078,1997.2,1995.9,63.1953]
[1742668799888,3.2078,1997.7,1997.1,3.2078]
[1742668800087,2.0302,1997.6,1997.2,1.3771]
[1742668800295,2.6742,1997.6,1997.2,1.3771]
[1742668800489,1.00144,1997.5,1997.4,1.00147]
[1742668800686,2.36134,1997.5,1997.2,1.3771]
[1742668800885,2.36136,1997.5,1997.4,1.00148]
[1742668801084,2.36133,1997.5,1997.4,1.00148]
[1742668801295,2.36133,1997.5,1997.4,2.37858]
[1742668801897,1.3599,1997.5,1997.4,2.37858]
[1742668802104,0.67781785,1997.6,1997.5,1.00143]
[1742668802295,0.00751785,1997.6,1997.5,8.81113]
[1742668809697,3.2078,1998.1,1998.0,1.00118]
[1742668810000,2.3729,1998.0,1997.9,1.00121]
[1742668810500,2.37291,1998.0,1997.9,1.00123]
[1742668811197,1.3717,1998.0,1997.9,1.00123]
[1742668811604,2.37288,1998.0,1997.9,1.00123]